Cogmind - Beta 11 @@@ ROGUE MODE // 2022.04.07 @ 14:26:52 Player: Decinym Result: Destroyed by G-47 Trooper with Particle Gun Performance ------------- Evolutions (0) 0 Regions Visited (2) 400 Robots Destroyed (27) 135 Value Destroyed (785) 785 Prototype IDs (0) 0 Alien Tech Used (0) 0 Bonus (0) 0 TOTAL SCORE: 1320 Bonus ------- None Cogmind --------- Core Integrity 0/250 Matter 290/300 Energy 239/250 System Corruption 0% Temperature Cool (24) Movement Rolling (95) Ox1 Location -10/Mines Parts ------- > --- POWER (1) -------- Ion Engine > --- PROPULSION (2) --- Wheel Wheel > --- UTILITY (2) ------ Heat Sink Large Storage Unit > --- WEAPON (2) ------- Particle Gun Assault Rifle > --- INVENTORY (15) --- Light Nuclear Core Light Nuclear Core Light Treads Aluminum Leg Heat Sink Medium Storage Unit Large Storage Unit Blade Trap Blade Trap Blade Trap Blade Trap Blade Trap Peak State ------------ > --- POWER ------------ Ion Engine > --- PROPULSION ------- Light Treads Light Treads > --- UTILITY ---------- Improved Heat Sink Large Storage Unit > --- WEAPON ----------- Particle Gun Particle Gun > --- INVENTORY -------- Ion Engine Light Nuclear Core Wheel Wheel Heat Sink Heat Sink Small Storage Unit Medium Storage Unit Large Storage Unit Large Battery Assault Rifle [Rating: 12] Favorites ----------- Power Ion Engine Engine Ion Engine Propulsion Light Treads Treads Light Treads Leg Aluminum Leg Wheel Wheel Utility Large Storage Unit Device Improved Heat Sink Storage Large Storage Unit Protection Power Shielding Weapon Particle Gun Energy Gun Particle Gun Energy Cannon Beam Cannon Ballistic Gun Assault Rifle Build | -11 -10 -10 ------- Run | Scr Mat Min Slots Evolved . | . . . Power . | . . . Propulsion . | . . . Utility . | . . . Weapon . | . . . Parts Attached 14 | . 7 7 Power 1 | . . 1 Engine 1 | . . 1 Core . | . . . Reactor . | . . . Propulsion 4 | . 2 2 Treads 2 | . 2 . Leg . | . . . Wheel 2 | . . 2 Hover . | . . . Flight . | . . . Utility 5 | . 3 2 Device 3 | . 1 2 Storage 1 | . 1 . Processor . | . . . Hackware . | . . . Protection 1 | . 1 . Artifact . | . . . Weapon 4 | . 2 2 Energy Gun 2 | . 1 1 Energy Cannon 1 | . 1 . Ballistic Gun 1 | . . 1 Ballistic Cannon . | . . . Launcher . | . . . Special Weapon . | . . . Impact Weapon . | . . . Slashing Weapon . | . . . Piercing Weapon . | . . . Special Melee Weapon . | . . . Unidentified Prototypes . | . . . Parts Lost 4 | . . 4 Power 1 | . . 1 Propulsion 1 | . . 1 Utility 1 | . . 1 Weapon 1 | . . 1 Highest Loss Streak 2 | . . 2 To Critical Strikes . | . . . Average Slot Usage (%) 98 | . 96 99 Engine 13 | . 14 13 Treads 17 | . 12 21 Leg 6 | . 15 . Wheel 3 | . . 6 Device 10 | . 4 14 Storage 14 | . 14 14 Protection 2 | . 6 . Energy Gun 17 | . 15 19 Energy Cannon 9 | . 12 8 Naked Turns . | . . . Heaviest Build 32 | 13 32 32 Greatest Support 40 | 20 40 40 Greatest Overweight (x) 1 | . . 1 Average Overweight (x) . | . . . Largest Inventory Capacity 15 | . 15 15 Average Capacity 13 | . 11 15 Most Carried 15 | . 8 15 Average Carried 9 | . 7 11 Final Capacity 15 | 8 15 15 Final Carried 12 | 6 8 12 Class Distribution -------------------- 100% | Mutant Dominant Class ---------------- Mutant | -10/Materials Mutant | -10/Mines Resources | -11 -10 -10 ----------- Run | Scr Mat Min Matter Collected 325 | 200 70 55 Remotely . | . . . Salvage Created 1005 | . 502 503 Parts 48 | . 25 23 Haulers Intercepted 1 | . 1 . Recyclers Shooed 1 | . . 1 Parts Field Recycled . | . . . Retrieved Matter . | . . . Parts Self-Destructed . | . . . Prevented . | . . . Kills | -11 -10 -10 ------- Run | Scr Mat Min Combat Hostiles Destroyed 25 | . 13 12 Guns 17 | . 9 8 Cannons 6 | . 3 3 Classes Destroyed 6 | . 4 2 Worker 2 | . 1 1 Hauler 1 | . 1 . Recycler 1 | . . 1 Swarmer 3 | . 3 . Grunt 20 | . 10 10 Assembled 2 | . . 2 Best Kill Streak 4 | . 4 4 Combat Bots Only 3 | . 3 3 Max Kills in Single Turn 1 | . 1 1 Gunslinging . | . . . Exploded . | . . . Melee . | . . . Uniques/NPCs Destroyed . | . . . Combat | -11 -10 -10 -------- Run | Scr Mat Min Damage Taken 1063 | . 361 702 Core 251 | . 69 182 Absorbed by Shields . | . . . Core Remaining (%) 100 | 100 . . Volleys Fired 88 | . 42 46 Largest 2 | . 2 2 Hottest 130 | . 125 130 Shots Fired 172 | . 80 92 Gun 110 | . 43 67 Cannon 62 | . 37 25 Launcher . | . . . Special . | . . . Kinetic . | . . . Thermal 167 | . 75 92 Explosive . | . . . Electromagnetic 5 | . 5 . Robot Hit Streak 14 | . 14 9 Robot Miss Streak 4 | . 3 4 Penetration Max . | . . . Secondary Targets 1 | . . 1 Max Gunslinging Chain 1 | . . 1 Shots Hit Robots 115 | . 53 62 Core Hits 39 | . 19 20 Critical Kills . | . . . Critical Parts Destroyed . | . . . Critical Strikes 2 | . 1 1 Burn 2 | . 1 1 Melee Attacks . | . . . Impact . | . . . Slashing . | . . . Piercing . | . . . Sneak Attacks . | . . . Combat Hostiles . | . . . Follow-up Attacks . | . . . Damage Inflicted 1867 | . 846 1021 Guns 1117 | . 462 655 Cannons 750 | . 384 366 Explosions . | . . . Melee . | . . . Ramming . | . . . Kinetic . | . . . Thermal 1841 | . 820 1021 Explosive . | . . . Electromagnetic 26 | . 26 . Impact . | . . . Slashing . | . . . Piercing . | . . . Highest Corruption . | . . . Average Corruption . | . . . Corruption Purged . | . . . Corruption Blocked . | . . . Overload Shots . | . . . Overflow Damage . | . . . Projectiles . | . . . Explosions . | . . . Melee . | . . . Knockbacks . | . . . Impact . | . . . Kinetic . | . . . Secondary . | . . . Self-Inflicted Damage . | . . . Shots . | . . . Rammed . | . . . Targets Rammed . | . . . Kicked . | . . . Crushed . | . . . Highest Temperature 359 | . 339 359 Average Temperature 110 | . 112 106 Received Heat Transfer 453 | . 195 258 Effects 2 | . 2 . Energy Bleed 1 | . 1 . Interference 1 | . 1 . Siege Activations . | . . . Robots Corrupted . | . . . Combat Hostiles . | . . . Parts Fried . | . . . Impact Corruptions . | . . . Robots Melted 2 | . 1 1 Combat Hostiles 2 | . 1 1 Parts Melted 5 | . 2 3 Heat Transferred 4307 | . 1902 2405 Parts Sabotaged . | . . . Parts Stolen . | . . . Parts Stripped . | . . . Power Chain Reactions . | . . . Missiles Intercepted . | . . . Alert | -11 -10 -10 ------- Run | Scr Mat Min Peak Influence 332 | . 332 204 Initial 89 | . . 89 Average 129 | . 142 121 Maximum Alert Level 1 | . 1 1 Low Security (%) 62 | . 68 59 Level 1 37 | . 31 40 Level 2 . | . . . Level 3 . | . . . Level 4 . | . . . Level 5 . | . . . High Security . | . . . Max Security . | . . . Squads Dispatched 3 | . 3 . Investigation 2 | . 2 . Extermination . | . . . Reinforcement 1 | . 1 . Assault . | . . . Garrison . | . . . Intercept . | . . . Searches Triggered . | . . . Construction Impeded . | . . . Haulers Reinforced . | . . . Active Scanning Responses . | . . . Cargo Convoy Interrupts . | . . . Stealth | -11 -10 -10 --------- Run | Scr Mat Min Distress Signals . | . . . Communications Jammed . | . . . Distress Signals . | . . . Times Spotted 35 | . 21 14 Peak Tracking Total 4 | . 4 3 Tactical Retreats 3 | . 2 1 Traps | -11 -10 -10 ------- Run | Scr Mat Min Traps Triggered 2 | . 2 . Indirectly . | . . . Trap Hack Attempts . | . . . Triggered . | . . . Disarmed . | . . . Reprogrammed . | . . . Reused . | . . . Traps Extracted . | . . . Installed . | . . . Triggered . | . . . Most Traps Carried 5 | . . 5 Machines | -11 -10 -10 ---------- Run | Scr Mat Min Machines Disabled . | . . . Max in Single Turn . | . . . Machines Sabotaged . | . . . Garrisons Compromised . | . . . Overloaded Fab Kills . | . . . Hacking | -11 -10 -10 --------- Run | Scr Mat Min Machines Accessed 5 | . 5 . Terminals 5 | . 5 . Fabricators . | . . . Repair Stations . | . . . Recycling Units . | . . . Scanalyzers . | . . . Garrison Access . | . . . Total Hacks 8 | . 8 . Successful 1 | . 1 . Failed 7 | . 7 . Catastrophic 3 | . 3 . Database Lockouts . | . . . Manual 7 | . 7 . Terminals 8 | . 8 . Fabricators . | . . . Repair Stations . | . . . Recycling Units . | . . . Scanalyzers . | . . . Garrison Access . | . . . Terminal Hacks 1 | . 1 . Branch Access Points 1 | . 1 . Fabricator Hacks . | . . . Repair Station Hacks . | . . . Recycling Unit Hacks . | . . . Scanalyzer . | . . . Garrison Access Hacks . | . . . Unauthorized Hacks . | . . . Terminals . | . . . Fabricators . | . . . Repair Stations . | . . . Recycling Units . | . . . Scanalyzers . | . . . Garrison Access . | . . . Data Cores Recovered . | . . . Used . | . . . Hacking Detections 5 | . 5 . Full Trace Events . | . . . Feedback Events . | . . . Feedback Blocked . | . . . Robot Schematics Acquired . | . . . Robots Built . | . . . Authchips . | . . . Time . | . . . Total Robot Build Rating . | . . . Part Schematics Acquired . | . . . Parts Built . | . . . Authchips . | . . . Time . | . . . Total Part Build Rating . | . . . Parts Repaired . | . . . Time . | . . . Parts Recycled . | . . . Recycled Matter . | . . . Retrieved Matter . | . . . Retrieved Components . | . . . Parts Scanalyzed . | . . . Part Schematics Acquired . | . . . Parts Damaged . | . . . Bothacking | -11 -10 -10 ------------ Run | Scr Mat Min Used RIF Installer . | . . . Robots Hacked . | . . . Non-combat . | . . . Combat . | . . . Robot Hacks Applied . | . . . Relay Couplers Released . | . . . Fabnet Peak Effective % . | . . . Robots Rewired . | . . . Allies Hacked . | . . . Hacks Repelled . | . . . Allies | -11 -10 -10 -------- Run | Scr Mat Min Total Allies . | . . . Largest Group . | . . . Highest-Rated Group . | . . . Highest-Rated Ally . | . . . Total Orders . | . . . Ally Attacks . | . . . Total Damage . | . . . Kills . | . . . Allies Corrupted . | . . . Allies Melted . | . . . Intel | -11 -10 -10 ------- Run | Scr Mat Min Robot Analysis Total . | . . . Derelict Logs Recovered 2 | . . 2 Drone Launches . | . . . Drone Recoveries . | . . . Exploration | -11 -10 -10 ------------- Run | Scr Mat Min Turns Passed 1339 | . 522 817 Spaces Moved 654 | 1 280 373 Core . | . . . Treads 419 | . 97 322 Legs 184 | 1 183 . Wheels 51 | . . 51 Hover . | . . . Flight . | . . . Fastest Speed 95 | 120 120 95 Average Speed 143 | 120 133 151 Slowest Speed 160 | 120 160 160 Overloaded Moves . | . . . Propulsion Burnouts . | . . . Robots Hopped . | . . . Cave-ins Triggered . | . . . Exploration Rate (%) 44 | 2 58 74 Regions Visited 2 Branch Regions 1 Pre-discovered Areas 1 | . . 1 Known Exits Taken 1 | . 1 . Unknown Exits Taken 1 | 1 . . Scrap Searched 3 | . . 3 Spaces Dug . | . . . Terrain Destroyed . | . . . Melee . | . . . Projectile . | . . . AOE . | . . . Terrain Rammed . | . . . Walls Destroyed . | . . . Machines Disabled . | . . . Actions | -11 -10 -10 --------- Run | Scr Mat Min Total 880 | . 346 534 Wait 106 | . 10 96 Move 652 | . 279 373 Hop . | . . . Pick Up 12 | . 3 9 Fast Attach 5 | . 4 1 Attach 4 | . . 4 Detach . | . . . Swap 5 | . 3 2 Drop 8 | . 5 3 Fire 88 | . 42 46 Melee . | . . . Ram . | . . . Kick . | . . . Crush . | . . . Escape Stasis . | . . . Rewire . | . . . Trap . | . . . Miscellaneous . | . . . Route ------- -11/Scrapyard -10/Materials (discovered 3 exits: [*Mat x2] / *Min) -10/Mines (discovered 1 exit: [*Mat]) History --------- Turn | Location | Event 1 | -11/Scrapyard | Discovered new exit (range 0) 1 | -11/Scrapyard | Entered Materials 139 | -10/Materials | Discovered new exit (range 7) 324 | -10/Materials | Build established: Mutant 417 | -10/Materials | Discovered new exit (range 14) 472 | -10/Materials | Identified exit to Mines 523 | -10/Materials | Entered Mines 601 | -10/Mines | Learned location of Storage (-8) 609 | -10/Mines | Learned location of 1 exit from Materials 956 | -10/Mines | Discovered new exit (range 5) 996 | -10/Mines | Core integrity fell below 50% 1023 | -10/Mines | Found a hidden stash of uninstalled traps 1131 | -10/Mines | Excavation squad dispatched 1131 | -10/Mines | A large section of the Mines collapsed 1253 | -10/Mines | Core integrity fell below 20% 1340 | -10/Mines | Destroyed by G-47 Trooper with Particle Gun Last Messages --------------- 01245_ Switching to secondary target: G-34 Mercenary. 01246_ T-07 Excavator is excavating. 01254_ G-34 Mercenary destroyed. 01255_ T-07 Excavator is excavating. 01256_ Imp. Heat Sink destroyed. 01259_ T-07 Excavator is excavating. 01267_ Heat Sink melted. 01267_ G-34 Mercenary destroyed. 01268_ T-07 Excavator is excavating. 01274_ Acquired 22 matter. 01274_ T-07 Excavator is excavating. 01276_ K-01 Serf collects debris. 01279_ T-07 Excavator is excavating. 01280_ K-01 Serf collects debris. 01281_ T-07 Excavator is excavating. 01285_ K-01 Serf collects debris. 01293_ G-34 Mercenary suffers critical hit (Burn). 01299_ G-34 Mercenary destroyed. 01308_ Acquired Aluminum Leg. 01338_ Particle Gun destroyed. Map ----- +----------------------------------------------------+ | ?????????????# #??????????????????????????? | | ?????????????# ##### #??????????????????????????? | | ?????????????# #???# #??????????????????????????? | | ?????????????# ###?# #??????????????????????????? | | ???????????### ### #??????????????????????????? | | ??????????## ## #????########??????????????? | | #?????????# ## #????# #??????????????? | | ########### ###### #??????????????? | | !%! ### %% %% #??????????????? | | ############# ##?### #### #??????????????? | | ????????????######????# #??# #??????????????? | | ????????????#########?# ###############??????????? | | ????????????# ###=%*%! #???# ???????????? | | ????????????# !####%#??# ????????????? | | ????????????# #####??#[#?? #?????????????? | | ????????????# #??????#%### #?????????????? | | ????????????# < #?????## ## #?????????????? | | ????????????# #????##==## #??????????????? | | ????????????# #????# ] ##?????????????? | | ????????????# #????# ! #?????????????? | | ????????????#########????# ! #?????????????? | | ?????????????????????????## #?????????????? | | ????????????????????????#### #####?????????? | | ?????????????????######## g ?????? | | ?????????????????# g #######???????? | | ?????????????#???# ######@###### ##?????????????? | | ????????????? ??????????# #?????###??????????????? | | ????????????? ??????????# #??????????????????????? | | ????????????# #?????????# #??????????????????????? | | ????????????# #?????????# #??????????????????????? | | ????????????# #?????????# #??????????????????????? | | ????#####???# #??######## #??????????????????????? | | ???## ##??# #?# #??????????????????????? | | ??## ##?# #?# ####### ###????????????????????? | | ?## ### #?# #????## ##???????????????????? | | ## %[ ## #?# #????# ##??????????????????? | | %[ [ ### #???## #??????????????????? | | = %= ## #??## ##??????????????????? | | ## ## #### # [##### #??????????????? | | ######### ## !*%! #??????????????? | | #???????## ###########??????????????? | | #????????### #### % #???????????????????????? | | ##??????????#####??# #??????????????????????? | | ###??????????????????## #?????????????????????? | | ??????????????????????# #?????????????????????? | | ??????????????????????# #?????????????????????? | | ?????????????????????? #?????????????????????? | | ?????????????????????? #?????????????????????? | | ??????????????????????# ##?????????????????????? | | ??????????????????????#####??????????????????????? | +----------------------------------------------------+ Best States ------------- Heat Dissipation 39 Energy Generation 10 Energy Capacity 250 Matter Stores 300 Matter Capacity 300 Sight Range 16 Terrain Scan Density 10 Power Shielding 33 Evasion (%) 55 Recoil Reduction 2 Item Schematics ----------------- None Robot Schematics ------------------ None Fabricated ------------ Nothing Alien Tech Used ----------------- None Achievements -------------- None Challenges ------------ None Game ------ Seed ChromaticMicrowarpPerforator Manual? 0 Play Time 00:09:40 Cumulative 302.3 hours Start 2022.04.07 @ 14:20:22 End 2022.04.07 @ 14:26:52 Sessions 1 Manual Loads 0 Difficulty Rogue Special Mode None Game No. 339 Rogue 339 Adventurer 0 Explorer 0 Win Type - Total 27 Types 16/3/2/1/2/0/3/0/0 Lore% 83 Gallery% 81 Achievement% 80 Wizard Run 0 Options --------- ASCII 0 Keyboard 0 Movement Arrows Keybinds 0 Fullscreen 1 Font 18/SmallcapsGlow Map View 76x50 Tactical HUD 1 Map Filters NONE Filters NONE Steam 1 RUN: 3b5f6e57-5897-446e-b060-5cd775c5f14f